bitfinex-derivatives/quotes_BTCF0:USTF0_20230402
["timestamp","ask_amount","ask_price","bid_price","bid_amount"]
[1680457351272,0.003,28213.0,28212.0,0.0885]
[1680457351967,0.003,28213.0,28210.0,0.052]
[1680457352273,0.05,28214.0,28210.0,0.1379]
[1680457352469,0.052,28214.0,28212.0,0.002]
[1680457352669,0.05,28214.0,28210.0,0.1379]
[1680457352873,0.003,28213.0,28211.0,0.3007]
[1680457353074,0.003,28213.0,28212.0,0.05]
[1680457353272,0.003,28213.0,28212.0,0.1378]
[1680457353474,0.05,28217.0,28212.0,0.1378]
[1680457353771,0.002,28214.0,28212.0,0.052]
[1680457353976,0.05,28217.0,28213.0,0.0879]
[1680457354276,0.05,28217.0,28216.0,0.0886]
[1680457354779,0.3507,28218.0,28216.0,0.0886]
[1680457355178,0.001,28217.0,28216.0,0.0886]
[1680457355672,0.3527,28218.0,28216.0,0.0886]
[1680457356072,0.001,28217.0,28216.0,0.0906]
[1680457356467,0.3507,28218.0,28216.0,0.0886]
[1680457356666,0.3527,28218.0,28216.0,0.0886]
[1680457357770,0.001,28217.0,28216.0,0.0906]
[1680457357983,0.01799943,28217.0,28216.0,0.0906]
[1680457358472,0.01699943,28217.0,28216.0,0.0886]
[1680457359075,0.01799943,28217.0,28216.0,0.0906]
[1680457361970,0.01799943,28217.0,28216.0,0.002]
[1680457363275,0.10659943,28217.0,28216.0,0.002]
[1680457363872,0.15659943,28217.0,28216.0,0.002]
[1680457365981,0.06799943,28217.0,28216.0,0.002]
[1680457366182,0.01799943,28217.0,28216.0,0.002]
[1680457374580,0.06799943,28217.0,28216.0,0.002]
[1680457375087,0.01799943,28217.0,28216.0,0.002]
[1680457384283,0.01799943,28217.0,28216.0,0.1792]
[1680457384488,0.01051045,28217.0,28216.0,0.1792]
[1680457384691,0.01051045,28217.0,28216.0,0.2292]
[1680457384899,0.05217839,28220.0,28216.0,0.2292]
[1680457385099,0.3007,28221.0,28219.0,0.177]
[1680457385296,0.3007,28221.0,28220.0,0.1378]
[1680457385600,0.3007,28221.0,28220.0,0.0878]
[1680457385895,0.21968245,28222.0,28220.0,0.0878]
[1680457386199,0.022,28221.0,28219.0,0.0894]
[1680457386499,0.022,28221.0,28220.0,0.0896]
[1680457386799,0.022,28221.0,28220.0,0.1396]
[1680457386999,0.022,28221.0,28220.0,0.0896]
[1680457387494,0.21968245,28223.0,28220.0,0.0886]
[1680457387695,0.003,28221.0,28220.0,0.3007]
[1680457387895,0.003,28221.0,28220.0,0.4393]
[1680457388097,0.05,28223.0,28220.0,0.4433]
[1680457388298,0.05,28223.0,28222.0,0.0886]
[1680457389203,0.053,28223.0,28222.0,0.0886]
[1680457389698,0.053,28223.0,28218.0,0.05]
[1680457389699,0.053,28223.0,28218.0,0.1386]
[1680457389906,0.053,28223.0,28218.0,0.0886]
[1680457390900,0.69,28221.0,28216.0,0.0878]
[1680457391102,0.3007,28217.0,28212.0,0.1386]
[1680457391408,0.05,28216.0,28212.0,0.1386]
[1680457391795,0.05,28216.0,28212.0,0.0886]
[1680457392402,0.3893,28214.0,28212.0,0.008]
[1680457392600,0.05,28213.0,28212.0,0.008]
[1680457394100,0.053,28213.0,28212.0,0.008]
[1680457394794,0.003,28213.0,28212.0,0.008]
[1680457395000,0.053,28213.0,28212.0,0.008]
[1680457395803,0.003,28213.0,28212.0,0.008]
[1680457396006,0.053,28213.0,28212.0,0.008]
[1680457396705,0.057306,28213.0,28212.0,0.008]
[1680457396900,0.003,28213.0,28212.0,0.008]
[1680457397208,0.003,28213.0,28212.0,0.058]
[1680457398704,0.003,28213.0,28212.0,0.008]
[1680457401607,0.003,28213.0,28212.0,0.058]
[1680457401808,0.003,28213.0,28212.0,0.008]
[1680457403206,0.01523244,28213.0,28212.0,0.008]
[1680457403705,0.01523244,28213.0,28212.0,0.007]
[1680457403912,0.01523244,28213.0,28212.0,0.057]
[1680457404210,0.01523244,28213.0,28212.0,0.007]
[1680457404412,0.01523244,28213.0,28212.0,0.006]
[1680457404413,0.01423244,28213.0,28212.0,0.006]
[1680457404616,0.01423244,28213.0,28212.0,0.056]
[1680457404801,0.01523244,28213.0,28212.0,0.056]
[1680457405210,0.01523244,28213.0,28212.0,0.006]
[1680457405805,0.01523244,28213.0,28211.0,0.3885]
[1680457406007,0.01423244,28213.0,28212.0,0.006]
[1680457406205,0.01423244,28213.0,28212.0,0.056]
[1680457406412,0.01523244,28213.0,28212.0,0.056]
[1680457406608,0.01523244,28213.0,28212.0,0.006]
[1680457406913,0.01423244,28213.0,28212.0,0.006]
[1680457407215,0.01423244,28213.0,28212.0,0.056]
[1680457407409,0.01523244,28213.0,28212.0,0.056]
[1680457407712,0.01523244,28213.0,28212.0,0.006]
[1680457408512,0.01223244,28213.0,28211.0,0.3885]
[1680457408714,0.01423244,28213.0,28212.0,0.056]
[1680457410507,0.01423244,28213.0,28212.0,0.006]
[1680457420617,0.01423244,28213.0,28212.0,0.1446]
[1680457421320,0.01423244,28213.0,28212.0,0.0946]
[1680457421622,0.01423244,28213.0,28212.0,0.1446]
[1680457422324,0.01423244,28213.0,28212.0,0.0946]
[1680457429128,0.01423244,28213.0,28212.0,0.006]
[1680457429625,0.06423244,28213.0,28212.0,0.00582655]
[1680457429824,0.01423244,28213.0,28212.0,0.00582655]
[1680457432113,0.08513244,28213.0,28212.0,0.00582655]
[1680457442231,0.08473244,28213.0,28212.0,0.00582655]
[1680457443833,0.01423244,28213.0,28212.0,0.07642655]
[1680457452537,0.01423244,28213.0,28212.0,0.37712655]
[1680457461956,0.01423244,28213.0,28212.0,0.58962655]
[1680457465762,0.01423244,28213.0,28212.0,0.37722655]
[1680457465958,0.08473244,28213.0,28212.0,0.00582655]
[1680457472065,0.08503244,28213.0,28212.0,0.00582655]
[1680457475663,0.05,28212.0,28207.0,0.04216779]
[1680457475859,0.05,28212.0,28206.0,0.11306779]
[1680457475860,0.0706,28208.0,28206.0,0.11306779]
[1680457476056,0.05,28207.0,28206.0,0.0709]
[1680457477258,0.05,28207.0,28206.0,0.0929]
[1680457477459,0.001,28207.0,28206.0,0.0929]
[1680457477668,0.001,28207.0,28206.0,0.1429]
[1680457478053,0.0193243,28207.0,28206.0,0.1429]
[1680457486368,0.0193243,28207.0,28206.0,0.4436]
[1680457493281,0.0193243,28207.0,28206.0,0.48576779]
[1680457493576,0.3007,28213.0,28207.0,0.05]
[1680457493781,0.01376615,28212.0,28211.0,0.0709]
[1680457493967,0.06376615,28212.0,28211.0,0.1209]
[1680457494172,0.01376615,28212.0,28211.0,0.1209]
[1680457494677,0.0703,28214.0,28211.0,0.1209]
[1680457494678,0.0703,28214.0,28212.0,0.05]
[1680457494877,0.0703,28214.0,28213.0,0.3007]
[1680457496079,0.0713,28214.0,28213.0,0.3147]
[1680457496479,0.001,28214.0,28213.0,0.3852]
[1680457497386,0.1427,28214.0,28213.0,0.014]
[1680457497680,0.1427,28214.0,28208.0,0.34291222]
[1680457497681,0.05,28213.0,28208.0,0.3007]
[1680457497881,0.05,28210.0,28206.0,0.39291222]
[1680457498585,0.05,28210.0,28208.0,0.01]
[1680457498781,0.1418,28209.0,28208.0,0.01]
[1680457498977,0.05,28208.0,28206.0,0.01]
[1680457499283,0.0709,28207.0,28206.0,0.01]
[1680457499485,0.1209,28207.0,28204.0,0.04221222]
[1680457499679,0.0705,28205.0,28204.0,0.04221222]
[1680457500276,0.0705,28205.0,28204.0,0.04223202]
[1680457500981,0.0705,28205.0,28203.0,0.3537]
[1680457501183,0.0706,28204.0,28203.0,0.3537]
[1680457501888,0.0706,28204.0,28201.0,0.05]
[1680457501889,0.1413,28204.0,28201.0,0.05]
[1680457502186,0.0882,28202.0,28200.0,0.3007]
[1680457502686,0.0882,28202.0,28201.0,0.05]
[1680457503278,0.10494808,28204.0,28201.0,0.05]
[1680457503473,0.003,28202.0,28201.0,0.05]
[1680457503979,0.003,28202.0,28201.0,0.051]
[1680457506079,0.02067661,28202.0,28201.0,0.001]
[1680457506282,0.02067661,28202.0,28201.0,0.051]
[1680457507878,0.02067661,28202.0,28201.0,0.001]
[1680457508486,0.02067661,28202.0,28201.0,0.051]
[1680457508684,0.02067661,28202.0,28201.0,0.001]
[1680457509084,0.02067661,28202.0,28201.0,0.051]
[1680457509489,0.02067661,28202.0,28201.0,0.001]
[1680457510792,0.10937661,28202.0,28198.0,0.04223202]
[1680457510989,0.05,28201.0,28198.0,0.04223202]
[1680457511185,0.02278573,28200.0,28199.0,0.05]
[1680457511888,0.0917,28202.0,28199.0,0.05]
[1680457512090,0.0887,28201.0,28199.0,0.05]
[1680457512292,0.05,28200.0,28199.0,0.05]
[1680457512491,0.05,28200.0,28198.0,0.05]
[1680457512689,0.1387,28201.0,28198.0,0.05]
[1680457513386,0.003,28200.0,28198.0,0.05]
[1680457513586,0.053,28200.0,28198.0,0.05]
[1680457513892,0.0917,28201.0,28198.0,0.05]
[1680457515095,0.003,28200.0,28198.0,0.05]
[1680457515294,0.0882,28199.0,28198.0,0.05]
[1680457515496,0.0882,28199.0,28197.0,0.05]
[1680457515793,0.0887,28198.0,28196.0,0.05]
[1680457516001,0.1387,28197.0,28196.0,0.05]
[1680457516497,0.0887,28197.0,28196.0,0.05]
[1680457517097,0.0917,28197.0,28195.0,0.3007]
[1680457517898,0.0887,28196.0,28195.0,0.3007]
[1680457518093,0.0887,28196.0,28194.0,0.09223202]
[1680457518300,0.0882,28195.0,28193.0,0.09223202]
[1680457518490,0.0882,28195.0,28194.0,0.04223202]
[1680457519100,0.0882,28195.0,28193.0,0.05]
[1680457519101,0.1382,28195.0,28193.0,0.05]
[1680457519405,0.0912,28195.0,28193.0,0.05]
[1680457519698,0.0887,28194.0,28193.0,0.05]
[1680457521507,0.0917,28194.0,28193.0,0.05]
[1680457522105,0.003,28194.0,28193.0,0.05]
[1680457525011,0.03064779,28194.0,28193.0,0.05]
[1680457528111,0.03064779,28194.0,28192.0,0.05]
[1680457528709,0.03064779,28194.0,28193.0,0.0887]
[1680457528907,0.05194808,28204.0,28193.0,0.5328]
[1680457529209,0.4182,28205.0,28201.0,0.05]
[1680457529412,0.14304208,28205.0,28202.0,0.3007]
[1680457529614,0.05,28204.0,28202.0,0.3007]
[1680457529809,0.05,28204.0,28203.0,0.05]
[1680457530309,0.05,28204.0,28202.0,0.3017]
[1680457530712,0.001,28204.0,28203.0,0.065]
[1680457530909,0.051,28204.0,28203.0,0.065]
[1680457531414,0.051,28204.0,28203.0,0.05]
[1680457531713,0.001,28204.0,28203.0,0.1379]
[1680457532117,0.001,28204.0,28203.0,0.05]
[1680457532504,0.001,28204.0,28203.0,0.065]
[1680457533312,0.001,28204.0,28203.0,0.059]
[1680457533713,0.001,28204.0,28203.0,0.015]
[1680457534020,0.001,28204.0,28203.0,0.065]
[1680457534714,0.001,28204.0,28203.0,0.015]
[1680457534918,0.0897,28204.0,28203.0,0.015]
[1680457536509,0.10511289,28204.0,28203.0,0.015]
[1680457537418,0.15511289,28204.0,28203.0,0.015]
[1680457540519,0.10511289,28204.0,28203.0,0.015]
[1680457540726,0.01641289,28204.0,28203.0,0.015]
[1680457540924,0.01641289,28204.0,28203.0,0.065]
[1680457542014,0.01641289,28204.0,28203.0,0.1529]
[1680457543018,0.01641289,28204.0,28203.0,0.1029]
[1680457544120,0.01641289,28204.0,28203.0,0.2408]
[1680457544323,0.01246311,28204.0,28203.0,0.2408]
[1680457546519,0.001,28204.0,28203.0,0.2408]
[1680457557944,0.001,28204.0,28203.0,0.1528]
[1680457558346,0.05,28209.0,28203.0,0.1588]
[1680457558536,0.3507,28210.0,28207.0,0.0881]
[1680457558737,0.3507,28210.0,28208.0,0.05]
[1680457559138,0.3507,28210.0,28207.0,0.1381]
[1680457559643,0.05,28209.0,28207.0,0.0881]
[1680457559839,0.3507,28212.0,28208.0,0.0886]
[1680457560038,0.3507,28212.0,28207.0,0.05]
[1680457560039,0.3507,28212.0,28210.0,0.05]
[1680457560841,0.3507,28212.0,28209.0,0.3893]
[1680457560842,0.051,28212.0,28209.0,0.3893]
[1680457561041,0.051,28212.0,28210.0,0.05]
[1680457561243,0.051,28212.0,28210.0,0.051]
[1680457561939,0.051,28212.0,28209.0,0.0886]
[1680457562141,0.1219,28212.0,28210.0,0.0709]
[1680457562342,0.1219,28212.0,28210.0,0.1209]
[1680457562538,0.0719,28212.0,28210.0,0.1209]
[1680457563048,0.0719,28212.0,28210.0,0.0709]
[1680457564746,0.0719,28212.0,28210.0,0.1209]
[1680457564934,0.0719,28212.0,28210.0,0.0709]
[1680457569349,0.0709,28212.0,28210.0,0.0719]
[1680457570052,0.00198381,28211.0,28210.0,0.0719]
[1680457570243,0.05198381,28211.0,28210.0,0.0719]
[1680457571243,0.00198381,28211.0,28210.0,0.0719]
[1680457571444,0.00198381,28211.0,28210.0,0.0789]
[1680457572338,0.1208,28213.0,28210.0,0.0789]
[1680457574041,0.1208,28213.0,28210.0,0.0709]
[1680457574246,0.1218,28213.0,28210.0,0.0709]
[1680457578354,0.0718,28213.0,28210.0,0.0709]
[1680457581559,0.05,28212.0,28210.0,0.0709]
[1680457582055,0.05,28212.0,28209.0,0.3007]
[1680457582056,0.0709,28211.0,28209.0,0.3007]
[1680457582360,0.1203,28210.0,28209.0,0.3007]
[1680457583760,0.1203,28210.0,28209.0,0.3147]
[1680457583960,0.0703,28210.0,28209.0,0.3147]
[1680457585164,0.07209666,28210.0,28209.0,0.3147]
[1680457589457,0.07209666,28210.0,28209.0,0.014]
[1680457591966,0.07209666,28210.0,28209.0,0.0849]
[1680457591967,0.00179666,28210.0,28209.0,0.0849]
[1680457592273,0.4212,28212.0,28209.0,0.0849]
[1680457592475,0.4212,28212.0,28210.0,0.0704]
[1680457594173,0.4212,28212.0,28210.0,0.0714]
[1680457599079,0.3712,28212.0,28210.0,0.0714]
[1680457600068,0.00179664,28211.0,28210.0,0.0714]
[1680457600279,0.05179664,28211.0,28210.0,0.3721]
[1680457600486,0.00179664,28211.0,28210.0,0.3721]
[1680457601080,0.00179664,28211.0,28210.0,0.3791]
[1680457601990,0.00179664,28211.0,28210.0,0.3796]
[1680457602391,0.1209,28213.0,28210.0,0.3796]
[1680457602593,0.1209,28213.0,28211.0,0.0709]
[1680457602793,0.1209,28213.0,28212.0,0.05]
[1680457603201,0.1209,28213.0,28211.0,0.1209]
[1680457603394,0.1209,28213.0,28211.0,0.0709]
[1680457603690,0.001,28213.0,28212.0,0.12011119]
[1680457605898,0.051,28213.0,28212.0,0.12011119]
[1680457606198,0.051,28213.0,28212.0,0.07011119]
[1680457606395,0.001,28213.0,28212.0,0.07011119]
[1680457608496,0.001,28213.0,28212.0,0.12011119]
[1680457610296,0.001,28213.0,28212.0,0.07011119]
[1680457610603,0.001,28213.0,28212.0,0.12011119]
[1680457620509,0.001,28213.0,28212.0,0.07011119]
[1680457620907,0.001,28213.0,28212.0,0.12011119]
[1680457621110,0.0719,28213.0,28211.0,0.4216]
[1680457622000,0.001,28213.0,28212.0,0.0709]
[1680457622206,0.001,28213.0,28212.0,0.1209]
[1680457623915,0.051,28213.0,28212.0,0.1209]
[1680457624215,0.001,28213.0,28212.0,0.1209]
[1680457624917,0.001,28213.0,28212.0,0.4925]
[1680457628111,0.35339353,28216.0,28212.0,0.4935]
[1680457628309,0.35339353,28216.0,28215.0,0.05]
[1680457629014,0.35439353,28216.0,28215.0,0.05]
[1680457629420,0.35439353,28216.0,28214.0,0.0709]
[1680457630119,0.00179877,28215.0,28214.0,0.0709]
[1680457630720,0.00179877,28215.0,28214.0,0.0719]
[1680457631113,0.00279877,28215.0,28214.0,0.0719]
[1680457633920,0.00179877,28215.0,28214.0,0.0709]
[1680457634123,0.12319877,28215.0,28214.0,0.001]
[1680457635322,0.07319877,28215.0,28214.0,0.001]
[1680457637419,0.28589877,28215.0,28214.0,0.001]
[1680457637623,0.28589877,28215.0,28208.0,0.0704]
[1680457637624,0.05,28214.0,28208.0,0.0704]
[1680457637822,0.0709,28211.0,28208.0,0.0704]
[1680457639819,0.07271124,28211.0,28208.0,0.0704]
[1680457640124,0.07271124,28211.0,28210.0,5.002]
[1680457640622,0.08571124,28211.0,28210.0,5.002]
[1680457642022,0.08521124,28211.0,28210.0,5.002]
[1680457645627,0.08321124,28211.0,28210.0,5.001]
[1680457648317,0.08821124,28211.0,28210.0,5.001]
[1680457648729,0.0864,28211.0,28210.0,5.001]
[1680457649232,0.0794,28211.0,28210.0,5.001]
[1680457650127,0.0734,28211.0,28210.0,5.0]
[1680457651330,0.0794,28211.0,28210.0,5.001]
[1680457651732,0.0704,28211.0,28210.0,5.0]
[1680457651923,0.0734,28211.0,28210.0,5.0]
[1680457652120,0.003,28211.0,28210.0,5.0708]
[1680457652324,0.009,28211.0,28210.0,5.0718]
[1680457652727,0.023,28211.0,28210.0,5.0718]
[1680457654233,0.016,28211.0,28210.0,5.0718]
[1680457654820,0.023,28211.0,28210.0,5.0718]
[1680457655426,0.009,28211.0,28210.0,5.0718]
[1680457658827,0.01081125,28211.0,28210.0,5.0718]
[1680457660034,0.00181125,28211.0,28210.0,5.0708]
[1680457660233,0.00481125,28211.0,28210.0,5.0708]
[1680457660436,0.003,28211.0,28210.0,5.0708]
[1680457660632,0.0048112,28211.0,28210.0,5.0708]
[1680457660831,0.003,28211.0,28210.0,5.0708]
[1680457661735,0.0048112,28211.0,28210.0,5.0708]
[1680457662535,0.003,28211.0,28210.0,5.0708]
[1680457663630,0.003,28211.0,28210.0,5.3715]
[1680457664933,0.59397598,28216.0,28210.0,5.442]
[1680457665138,0.59397598,28216.0,28214.0,0.0709]
[1680457665341,0.12359353,28216.0,28215.0,0.05]
[1680457666131,0.14359353,28216.0,28215.0,0.05]
[1680457666536,0.14359353,28216.0,28215.0,0.052]
[1680457667135,0.13959353,28216.0,28215.0,0.051]
[1680457667534,0.12359353,28216.0,28215.0,0.05]
[1680457667734,0.13959353,28216.0,28215.0,0.051]
[1680457668740,0.12359353,28216.0,28215.0,0.05]
[1680457668937,0.13959353,28216.0,28215.0,0.051]
[1680457669142,0.13959353,28216.0,28215.0,0.001]
[1680457669340,0.13959353,28216.0,28215.0,0.051]
[1680457671744,0.13259353,28216.0,28215.0,0.051]
[1680457672141,0.009,28216.0,28215.0,0.1218]
[1680457674440,0.009,28216.0,28215.0,0.051]
[1680457675141,0.003,28216.0,28215.0,0.1209]
[1680457675546,0.009,28216.0,28215.0,0.12420476]
[1680457675746,0.00886023,28216.0,28215.0,0.12420476]
[1680457676045,0.002,28216.0,28215.0,0.12320476]
[1680457676246,0.00184304,28216.0,28215.0,0.12320476]
[1680457676449,0.05316958,28218.0,28215.0,0.12320476]
[1680457676647,0.00187143,28216.0,28215.0,0.05230476]
[1680457676845,0.00187143,28216.0,28215.0,0.12310476]
[1680457677249,0.00174274,28216.0,28215.0,0.12310476]
[1680457677446,0.00160916,28216.0,28215.0,0.12310476]
[1680457677644,0.00147716,28216.0,28215.0,0.12310476]
[1680457677849,0.1248319,28219.0,28215.0,0.12710476]
[1680457678051,0.1248319,28219.0,28217.0,0.05]
[1680457678747,0.0699319,28219.0,28218.0,0.0708]
[1680457678956,0.0699319,28219.0,28218.0,0.1208]
[1680457679253,0.0629319,28219.0,28218.0,0.1208]
[1680457679857,0.009,28219.0,28218.0,0.1917]
[1680457680060,0.12277478,28224.0,28219.0,0.05]
[1680457680364,0.6598,28226.0,28223.0,0.0708]
[1680457680554,0.6598,28226.0,28225.0,0.0707]
[1680457680555,0.3507,28226.0,28225.0,0.0707]
[1680457681154,0.3007,28226.0,28225.0,0.0707]
[1680457681448,0.17170125,28226.0,28225.0,0.0727]
[1680457681763,0.002,28226.0,28225.0,0.0727]
[1680457682059,0.002,28226.0,28225.0,0.0728]
[1680457682259,0.002,28226.0,28225.0,0.4443]
[1680457682657,0.002,28226.0,28225.0,0.4433]
[1680457683263,0.002,28226.0,28225.0,0.4623109]
[1680457691970,0.002,28226.0,28225.0,0.6041109]
[1680457694870,0.002,28226.0,28225.0,0.4617109]
[1680457695862,0.002,28226.0,28225.0,0.6036109]
[1680457696167,0.35316286,28232.0,28226.0,0.05]
[1680457696363,0.35316286,28232.0,28231.0,0.0703]
[1680457698172,0.36216286,28232.0,28231.0,0.0723]
[1680457698470,0.3097,28232.0,28231.0,0.0723]
[1680457698672,0.05,28237.0,28231.0,0.5854]
[1680457698866,0.05,28237.0,28232.0,0.05]
[1680457699266,0.10349254,28237.0,28232.0,0.05]
[1680457699560,0.1204,28237.0,28235.0,0.0707]
[1680457702066,0.05,28237.0,28236.0,0.0709]
[1680457702974,0.1208,28237.0,28235.0,0.002]
[1680457703162,0.0702,28236.0,28235.0,0.002]
[1680457703567,0.0702,28236.0,28233.0,0.0709]
[1680457703769,0.1209,28235.0,28233.0,0.0709]
[1680457704072,0.1209,28235.0,28234.0,0.03043566]
[1680457704673,0.4216,28235.0,28234.0,0.03043566]
[1680457704972,0.4216,28235.0,28234.0,0.03243566]
[1680457708372,0.4215,28235.0,28234.0,0.03243566]
[1680457709773,0.3507,28235.0,28234.0,0.10293566]
[1680457710869,0.4215,28235.0,28234.0,0.03243566]
[1680457711468,0.3507,28235.0,28234.0,0.10263566]
[1680457712074,0.3507,28235.0,28234.0,0.10293566]
[1680457713081,0.3507,28235.0,28234.0,0.10193566]
[1680457713579,0.3507,28235.0,28234.0,0.10293566]
[1680457713780,0.3007,28235.0,28234.0,0.10293566]
[1680457713975,0.3007,28235.0,28234.0,0.10093566]
[1680457714376,0.3507,28235.0,28234.0,0.10093566]
[1680457717582,0.3507,28235.0,28234.0,0.17143566]
[1680457719788,0.3007,28235.0,28234.0,0.10063566]
[1680457720186,0.3007,28235.0,28234.0,0.10263566]
[1680457720585,0.3007,28235.0,28234.0,0.10063566]
[1680457720786,0.3007,28235.0,28234.0,0.17083566]
[1680457721385,0.3007,28238.0,28234.0,0.47153566]
[1680457721691,0.05,28239.0,28237.0,0.3712]
[1680457721885,0.05,28239.0,28238.0,0.15123736]
[1680457722086,0.05,28240.0,28238.0,0.15123736]
[1680457722286,0.10179305,28242.0,28239.0,0.1208]
[1680457722588,0.10179305,28242.0,28241.0,0.0708]
[1680457722589,0.05,28242.0,28241.0,0.0708]
[1680457723695,0.05,28242.0,28241.0,0.0728]
[1680457724783,0.05,28242.0,28241.0,0.0708]
[1680457724984,0.05,28242.0,28241.0,0.0728]
[1680457726497,0.05,28242.0,28241.0,0.0708]
[1680457726795,0.05,28242.0,28241.0,0.0728]
[1680457726995,0.10381845,28242.0,28241.0,0.0728]
[1680457727194,0.05,28242.0,28241.0,0.0728]
[1680457729797,0.10354097,28242.0,28241.0,0.0728]
[1680457730095,0.05,28242.0,28241.0,0.0728]
[1680457731195,0.10225679,28242.0,28241.0,0.0728]
[1680457731392,0.05,28242.0,28241.0,0.0728]
[1680457732001,0.1208,28242.0,28241.0,0.002]
[1680457734698,0.3007,28245.0,28241.0,0.373]
[1680457734899,0.001,28247.0,28244.0,0.1413]
[1680457735201,0.68541132,28250.0,28242.0,0.23087477]
[1680457735202,0.68541132,28250.0,28246.0,0.3715]
[1680457735403,0.68541132,28250.0,28246.0,0.3007]
[1680457735404,0.05,28249.0,28246.0,0.3007]
[1680457735601,0.05,28249.0,28246.0,0.0706]
[1680457736799,0.0708,28247.0,28246.0,0.002]
[1680457737102,0.0885,28247.0,28246.0,0.002]
[1680457737595,0.05,28248.0,28246.0,0.002]
[1680457737795,0.05,28248.0,28244.0,0.3888]
[1680457737995,0.05,28248.0,28246.0,0.002]
[1680457740703,0.3007,28247.0,28246.0,0.002]
[1680457741206,0.05,28248.0,28246.0,0.002]
[1680457741501,0.4392,28247.0,28246.0,0.002]
[1680457741904,0.05,28246.0,28244.0,0.3007]
[1680457742298,0.05,28246.0,28245.0,0.0882]
[1680457742498,0.05,28246.0,28244.0,0.3007]
[1680457743400,0.088,28245.0,28241.0,0.3007]
[1680457743602,0.05,28242.0,28239.0,0.05]
[1680457744198,0.05,28242.0,28238.0,0.3892]
[1680457745706,0.0885,28239.0,28238.0,0.3007]
[1680457746606,0.0885,28239.0,28238.0,0.3137]
[1680457747208,0.0885,28239.0,28238.0,0.3027]
[1680457748202,0.0885,28239.0,28238.0,0.3017]
[1680457749406,0.0885,28239.0,28238.0,0.3027]
[1680457749699,0.0885,28239.0,28238.0,0.3017]
[1680457750296,0.0885,28239.0,28238.0,0.33988094]
[1680457750901,0.0885,28239.0,28238.0,0.33788094]
[1680457752002,0.088,28240.0,28238.0,0.33888094]
[1680457752306,0.088,28240.0,28238.0,0.33788094]
[1680457753011,0.088,28240.0,28238.0,0.33888094]
[1680457756407,0.088,28240.0,28238.0,0.33788094]
[1680457757411,0.05,28239.0,28238.0,0.33788094]
[1680457758109,0.2255,28239.0,28238.0,0.03718094]
[1680457758507,0.2255,28239.0,28235.0,0.3007]
[1680457758711,0.088,28237.0,28235.0,0.3007]
[1680457761412,0.088,28237.0,28235.0,0.3077]
[1680457762213,0.05,28237.0,28235.0,0.3077]
[1680457763721,0.0876,28238.0,28235.0,0.3077]
[1680457764811,0.0876,28238.0,28235.0,0.3007]
[1680457765214,0.0876,28238.0,28236.0,0.03653002]
[1680457765416,0.0876,28238.0,28236.0,0.08653002]
[1680457765816,0.0876,28238.0,28236.0,0.03653002]
[1680457766523,0.0876,28238.0,28236.0,0.08653002]
[1680457766922,0.0882,28240.0,28237.0,0.05]
[1680457767224,0.05,28239.0,28237.0,0.05]
[1680457767625,0.0882,28240.0,28237.0,0.05]
[1680457767919,0.05,28239.0,28238.0,0.3007]
[1680457768325,0.1442,28240.0,28238.0,0.3007]
[1680457768922,0.006,28239.0,28238.0,0.3007]
[1680457769428,0.1442,28240.0,28238.0,0.3017]
[1680457770228,0.0885,28239.0,28238.0,0.3017]
[1680457771031,0.0885,28239.0,28238.0,0.3007]
[1680457771230,0.0945,28239.0,28238.0,0.3007]
[1680457780233,0.0945,28239.0,28238.0,0.33724761]
[1680457780439,0.0885,28239.0,28238.0,0.33724761]
[1680457780646,0.0945,28239.0,28238.0,0.33724761]
[1680457781243,0.26420125,28239.0,28238.0,0.33724761]
[1680457781445,0.0885,28239.0,28238.0,0.33724761]
[1680457781839,0.25820125,28239.0,28238.0,0.33724761]
[1680457782040,0.16970125,28239.0,28238.0,0.33724761]
[1680457782243,0.25810125,28240.0,28238.0,0.33724761]
[1680457782742,0.006,28239.0,28238.0,0.33724761]
[1680457782943,0.056,28239.0,28238.0,0.33724761]
[1680457783546,0.22570125,28239.0,28238.0,0.33724761]
[1680457783741,0.21970125,28239.0,28238.0,0.33724761]
[1680457784139,0.16970125,28239.0,28238.0,0.33724761]
[1680457786548,0.0884,28240.0,28238.0,0.33724761]
[1680457787446,0.0884,28240.0,28238.0,0.33701981]
[1680457788046,0.0944,28240.0,28238.0,0.33701981]
[1680457791748,0.26410125,28240.0,28238.0,0.33701981]
[1680457791957,0.26420125,28240.0,28238.0,0.33701981]
[1680457793953,0.0945,28240.0,28238.0,0.33701981]
[1680457794357,0.35001927,28240.0,28238.0,0.33701981]
[1680457797154,0.0708,28239.0,28238.0,0.33701981]
[1680457798453,0.0708,28239.0,28238.0,0.38701981]
[1680457800763,0.32631927,28239.0,28238.0,0.38701981]
[1680457800962,0.0708,28239.0,28238.0,0.38701981]
[1680457801458,0.24077179,28239.0,28238.0,0.08654761]
[1680457802256,0.16997179,28240.0,28238.0,0.45794761]
[1680457802461,0.16997179,28240.0,28239.0,0.1207]
[1680457803560,0.17597179,28240.0,28239.0,0.1207]
[1680457804866,0.31757179,28240.0,28239.0,0.05]
[1680457805364,0.31757179,28240.0,28238.0,0.38724761]
[1680457805566,0.0704,28239.0,28238.0,0.33724761]
[1680457806067,0.2823,28239.0,28237.0,3.54515503]
[1680457806269,0.80306514,28238.0,28237.0,3.54515503]